DOCUMENT TYPE,ECFRS Ref,NOMINAL,Cost Centre,TYPE OF EXPENDITURE,DESCRIPTION,PROCESSING DATE,YEARCODE,PERIOD,VALUE,Analysis,Analysis Title,Cost Centre Desc,Department
PCAR,3803,4019,9201,Community Safety,TESCO - CATERING FIREBREAK,09/05/2016,2017,02,46.17 ,000000000003,Youth Schemes,Community Safety,Community Safety
PCAR,3803,4019,9201,Community Safety,MORRISONS - CATERING FIREBREAK,09/05/2016,2017,02,5.80 ,000000000003,Youth Schemes,Community Safety,Community Safety
PCAR,3803,4019,9201,Community Safety,MORRISONS - CATERING FIREBREAK,09/05/2016,2017,02,61.49 ,000000000003,Youth Schemes,Community Safety,Community Safety
PCAR,3803,4019,9201,Community Safety,MORRISONS - CATERING FIREBREAK,09/05/2016,2017,02,42.55 ,000000000003,Youth Schemes,Community Safety,Community Safety
PCAR,3803,4019,9201,Community Safety,MORRISONS - CATERING FIREBREAK,09/05/2016,2017,02,57.97 ,000000000003,Youth Schemes,Community Safety,Community Safety
PCAR,3803,4019,9201,Community Safety,SAINSBURYS- CATERING FIREBREAK,09/05/2016,2017,02,72.43 ,000000000003,Youth Schemes,Community Safety,Community Safety
PCAR,3803,4019,9201,Community Safety,SAINSBURYS- CATERING FIREBREAK,09/05/2016,2017,02,37.62 ,000000000003,Youth Schemes,Community Safety,Community Safety
PCAR,3803,4019,9201,Community Safety,SAINSBURYS- CATERING FIREBREAK,09/05/2016,2017,02,45.98 ,000000000003,Youth Schemes,Community Safety,Community Safety
PCAR,3803,4019,9201,Community Safety,ASDA - CAMERA & CARD FIREBREAK,09/05/2016,2017,02,34.17 ,000000000003,Youth Schemes,Community Safety,Community Safety
PCAR,3803,4019,9201,Community Safety,SAINSBURYS- CATERING FIREBREAK,09/05/2016,2017,02,49.69 ,000000000003,Youth Schemes,Community Safety,Community Safety
PCAR,3803,4019,9201,Community Safety,SAINSBURYS- CATERING FIREBREAK,09/05/2016,2017,02,60.53 ,000000000003,Youth Schemes,Community Safety,Community Safety
PCAR,3804,4019,9201,Community Safety,LIMETREE HOLIDAY PARK-CAMP FEE,09/05/2016,2017,02,278.00 ,000000000003,Youth Schemes,Community Safety,Community Safety
PCAR,3804,4019,9201,Community Safety,KFC - EVE MEAL SILVER D OF E,09/05/2016,2017,02,18.81 ,000000000003,Youth Schemes,Community Safety,Community Safety
PCAR,3804,4019,9201,Community Safety,WYE BRIDGE - EVE MEAL D OF E,09/05/2016,2017,02,38.02 ,000000000003,Youth Schemes,Community Safety,Community Safety
PCAR,3804,4019,9201,Community Safety,WELCOME BREAK- EVE MEAL D OF E,09/05/2016,2017,02,21.22 ,000000000003,Youth Schemes,Community Safety,Community Safety
PCAR,3804,4019,9201,Community Safety,MORRISONS - CATERING FIREBREAK,09/05/2016,2017,02,50.53 ,000000000003,Youth Schemes,Community Safety,Community Safety
PCAR,3804,4019,9201,Community Safety,POUNDSTRETCHER - EASTER GIFTS,09/05/2016,2017,02,22.45 ,000000000003,Youth Schemes,Community Safety,Community Safety
PCAR,3804,4019,9201,Community Safety,CBC PARKING - PARKING FOR MTG,09/05/2016,2017,02,2.25 ,000000000003,Youth Schemes,Community Safety,Community Safety
PCAR,3804,4019,9201,Community Safety,SCOTTISH YOUTH HOSTEL - ACCOM,09/05/2016,2017,02,264.00 ,000000000003,Youth Schemes,Community Safety,Community Safety
PCAR,3804,4019,9201,Community Safety,GO OUTDOORS- CAMPING EQUIPMENT,09/05/2016,2017,02,62.72 ,000000000003,Youth Schemes,Community Safety,Community Safety
PCAR,3805,4019,9201,Community Safety,ROSE & CROWN - CATERING D OF E,09/05/2016,2017,02,80.80 ,000000000003,Youth Schemes,Community Safety,Community Safety
PCAR,3805,4019,9201,Community Safety,McDONALDS - CATERING D OF E,09/05/2016,2017,02,8.14 ,000000000003,Youth Schemes,Community Safety,Community Safety
PCAR,3805,4019,9201,Community Safety,SAINBURYS- EQUIPMENT FIREBREAK,09/05/2016,2017,02,58.33 ,000000000003,Youth Schemes,Community Safety,Community Safety
PCAR,3806,4111,9103,Subsistence Allowances,COSTA - LUNCH X 3 MEETING,09/05/2016,2017,02,11.58 ,000000000026,Seminars/conferences,Operations,Operations
PCAR,3806,4110,9103,Travelling Expenses,M6 TOLL - TOLL FEE CHARGE,09/05/2016,2017,02,4.58 ,000000000029,Fire Prevention miscellaneous,Operations,Operations
PCAR,3806,4110,9103,Travelling Expenses,M6 TOLL - TOLL FEE CHARGE,09/05/2016,2017,02,4.58 ,000000000029,Fire Prevention miscellaneous,Operations,Operations
PCAR,3806,4037,9202,Fire Prevention Support,STAPLES-AUTO PAGE NUMBER MACH,09/05/2016,2017,02,36.49 ,000000000028,Support materials,Workplace Safety,Workplace Safety
PCAR,3807,4110,9103,Travelling Expenses,GREATER ANGLIA - RAIL OPS MTG,10/05/2016,2017,02,59.20 ,000103000000,Operations (Dept),Operations,Operations (Dept)
PCAR,3807,4110,9103,Travelling Expenses,SOUTHEND HOSP-PARKING COURSE,10/05/2016,2017,02,4.00 ,000103000000,Operations (Dept),Operations,Operations (Dept)
PCAR,3807,4110,9103,Travelling Expenses,SL NCP - PARKING MEETING,10/05/2016,2017,02,7.50 ,000103000000,Operations (Dept),Operations,Operations (Dept)
PCAR,3808,4001,9404,Stationery,STAPLES - BLACK N RED NOTEBOOK,10/05/2016,2017,02,8.32 ,000420000000,Workshops Engineering (Dept),Purchasing & Supply,Workshops Engineering (Dept)
PCAR,3809,2001,9404,Procurement Costs,WHITE PAPER-PROCUREMENT/LEGAL ,10/05/2016,2017,02,149.00 ,000402000000,Finance (Dept),Purchasing & Supply,Finance (Dept)
PCAR,3809,4006,9303,Health & Safety,SLIP ALERT - REPLACEMENT PARTS,10/05/2016,2017,02,50.00 ,000303000000,Health & Safety (Dept),Health & Safety,Health & Safety (Dept)
PCAR,3809,4110,9103,Travelling Expenses,GREATER ANGLIA - RAIL SEMINAR,10/05/2016,2017,02,33.10 ,000404000000,Purchasing & Supply (Dept),Operations,Purchasing & Supply (Dept)
PCAR,3810,4110,9103,Travelling Expenses,GREATER ANGLIA-RAIL LONDON MTG,10/05/2016,2017,02,22.30 ,000010000000,010 Colchester,Operations,010 Colchester
PCAR,3811,2303,9404,Clothing & Footwear,SPORTS DIRECT - KARRIMOR BOOTS,11/05/2016,2017,02,36.85 ,000031000000,031 Leigh,Purchasing & Supply,031 Leigh
PCAR,3811,0709,9108,Performance Management,AMAZON - BOOK FOR PROJECT,11/05/2016,2017,02,62.31 ,000108000000,Performance Management & Improvement (Dept),Perf Mgmt & Impr,Performance Management & Improvement (Dept)
PCAR,3811,2030,9301,Operational Equipment Support,APPLIED TORQUE- REPLACE DRIVER,11/05/2016,2017,02,30.00 ,000072000000,072 Loughton,Technical Services,072 Loughton
PCAR,3811,2001,9404,Procurement Costs,BIP SOLUTIONS- REFUND TRAINING,11/05/2016,2017,02,-88.20 ,000404000000,Purchasing & Supply (Dept),Purchasing & Supply,Purchasing & Supply (Dept)
PCAR,3811,4009,9208,Operational Support Costs,AMAZON - 12V TO 240V INVERTER,11/05/2016,2017,02,25.88 ,000208000000,Resilience (Dept),Emergency Planning & Civil Protection,Resilience (Dept)
PCAR,3811,2030,9103,Operational Equipment Support,REPLACEMENTKEYS - MORTICE KEYS,11/05/2016,2017,02,27.08 ,000034000000,034 Chelmsford,Operations,034 Chelmsford
PCAR,3812,6899,9504,Miscellaneous Expenses,HOLIDAY IN-MEDIATION ROOM HIRE,11/05/2016,2017,02,395.00 ,000504000000,Human Resources (Dept),Human Resources,Human Resources (Dept)
PCAR,3813,4005,9505,IT Consumables,AMAZON - MOBILE PHONE CASES,11/05/2016,2017,02,39.90 ,000905000070,ICT - Central Corporate Costs - Hardware,ICT,ICT - Central Corporate Costs - Hardware
PCAR,3813,4005,9505,IT Consumables,UKMOBILESTORE - PHONE CHARGERS,11/05/2016,2017,02,76.24 ,000905000070,ICT - Central Corporate Costs - Hardware,ICT,ICT - Central Corporate Costs - Hardware
PCAR,3813,4005,9505,IT Consumables,AMAZON - PHONE CASES,11/05/2016,2017,02,51.96 ,000905000070,ICT - Central Corporate Costs - Hardware,ICT,ICT - Central Corporate Costs - Hardware
PCAR,3813,4005,9505,IT Consumables,IDEAL ENVELOPES  -STATIONERY,11/05/2016,2017,02,11.45 ,000905000070,ICT - Central Corporate Costs - Hardware,ICT,ICT - Central Corporate Costs - Hardware
PCAR,3813,4005,9505,IT Consumables,AMAZON - PHONE CASES,11/05/2016,2017,02,24.92 ,000905000070,ICT - Central Corporate Costs - Hardware,ICT,ICT - Central Corporate Costs - Hardware
PCAR,3813,2510,9505,IT Communications,J2 EFAX - EFA SUBSCRIPTION,11/05/2016,2017,02,15.00 ,000000000076,Communications - Voice,ICT,ICT
PCAR,3814,4019,9201,Community Safety,WH SMITHS - LUNCH EXERCISE SFR,11/05/2016,2017,02,11.20 ,000201000000,Community Safety (Dept),Community Safety,Community Safety (Dept)
PCAR,3815,4110,9103,Travelling Expenses,EUROTUNNEL-TICKETS K9 TRAINING,11/05/2016,2017,02,210.00 ,000014000000,014 USAR,Operations,014 USAR
PCAR,3816,4003,9405,Postage Direct Mailing & Carriage,ROYAL MAIL - ONLINE POSTAGE,16/05/2016,2017,02,100.00 ,000201000000,Community Safety (Dept),Property Services,Community Safety (Dept)
PCAR,3816,4019,9201,Community Safety,PAYPAL - OVEN CLEANING SERVICE,16/05/2016,2017,02,55.00 ,000000000125,Oven Cleaning,Community Safety,Community Safety
PCAR,3816,4003,9405,Postage Direct Mailing & Carriage,ROYAL MAIL - ONLINE POSTAGE,16/05/2016,2017,02,100.00 ,000201000000,Community Safety (Dept),Property Services,Community Safety (Dept)
PCAR,3816,4003,9405,Postage Direct Mailing & Carriage,ROYAL MAIL - ONLINE POSTAGE,16/05/2016,2017,02,100.00 ,000201000000,Community Safety (Dept),Property Services,Community Safety (Dept)
PCAR,3816,4019,9201,Community Safety,PAYPAL - OVEN CLEANING SERVICE,16/05/2016,2017,02,45.00 ,000000000125,Oven Cleaning,Community Safety,Community Safety
PCAR,3816,4019,9201,Community Safety,PAYPAL - OVEN CLEANING SERVICE,16/05/2016,2017,02,60.00 ,000000000125,Oven Cleaning,Community Safety,Community Safety
PCAR,3816,4019,9201,Community Safety,PAYPAL - OVEN CLEANING SERVICE,16/05/2016,2017,02,55.00 ,000000000125,Oven Cleaning,Community Safety,Community Safety
PCAR,3816,4019,9201,Community Safety,PAYPAL - OVEN CLEANING SERVICE,16/05/2016,2017,02,55.00 ,000000000125,Oven Cleaning,Community Safety,Community Safety
PCAR,3816,4019,9201,Community Safety,PAYPAL - OVEN CLEANING SERVICE,16/05/2016,2017,02,70.00 ,000000000125,Oven Cleaning,Community Safety,Community Safety
PCAR,3816,4019,9201,Community Safety,PAYPAL - OVEN CLEANING SERVICE,16/05/2016,2017,02,45.00 ,000000000125,Oven Cleaning,Community Safety,Community Safety
PCAR,3816,4019,9201,Community Safety,PAYPAL - OVEN CLEANING SERVICE,16/05/2016,2017,02,55.00 ,000000000125,Oven Cleaning,Community Safety,Community Safety
PCAR,3816,4019,9201,Community Safety,PAYPAL - OVEN CLEANING SERVICE,16/05/2016,2017,02,55.00 ,000000000125,Oven Cleaning,Community Safety,Community Safety
PCAR,3816,4019,9201,Community Safety,PAYPAL - OVEN CLEANING SERVICE,16/05/2016,2017,02,70.00 ,000000000125,Oven Cleaning,Community Safety,Community Safety
PCAR,3816,4003,9405,Postage Direct Mailing & Carriage,ROYAL MAIL - ONLINE POSTAGE,16/05/2016,2017,02,100.00 ,000201000000,Community Safety (Dept),Property Services,Community Safety (Dept)
PCAR,3817,4019,9201,Community Safety,SAINSBURYS-EQUIPMENT FIREBREAK,16/05/2016,2017,02,28.33 ,000000000003,Youth Schemes,Community Safety,Community Safety
PCAR,3817,4019,9201,Community Safety,SAINSBURY - CATERING FIREBREAK,16/05/2016,2017,02,77.79 ,000000000003,Youth Schemes,Community Safety,Community Safety
PCAR,3818,4019,9201,Community Safety,BOOTS - MEDICINES D OF E,16/05/2016,2017,02,10.97 ,000000000003,Youth Schemes,Community Safety,Community Safety
PCAR,3818,4019,9201,Community Safety,McDONALDS - BREAKFAST D OF E,16/05/2016,2017,02,8.47 ,000000000003,Youth Schemes,Community Safety,Community Safety
PCAR,3818,4019,9201,Community Safety,ROSE & CROWN- EVE MEALS D OF E,16/05/2016,2017,02,109.00 ,000000000003,Youth Schemes,Community Safety,Community Safety
PCAR,3818,4019,9201,Community Safety,KFC - EVE MEAL D OF E,16/05/2016,2017,02,28.04 ,000000000003,Youth Schemes,Community Safety,Community Safety
PCAR,3818,4019,9201,Community Safety,YHA - ACCOM HML TRAINING,16/05/2016,2017,02,80.19 ,000000000003,Youth Schemes,Community Safety,Community Safety
PCAR,3818,4019,9201,Community Safety,ASDA - CAETERING EXPEDITION,16/05/2016,2017,02,71.33 ,000000000003,Youth Schemes,Community Safety,Community Safety
PCAR,3819,4111,9210,Subsistence Allowances,WINCHESTER HOTEL - ACCOM MTG,16/05/2016,2017,02,92.63 ,000210000000,Emergency Planning (Dept),Essex Civil Prot ECC,Emergency Planning (Dept)
PCAR,3819,4110,9210,Travelling Expenses,GREATER ANGLIA - RAIL MEETING,16/05/2016,2017,02,19.30 ,000210000000,Emergency Planning (Dept),Essex Civil Prot ECC,Emergency Planning (Dept)
PCAR,3820,4009,9208,Operational Support Costs,HOTELS.COM - ACCOM UKRO,16/05/2016,2017,02,100.30 ,000000000191,UKRO - 2015/16,Emergency Planning & Civil Protection,Emergency Planning & Civil Protection
PCAR,3820,4009,9208,Operational Support Costs,PREMIER INN - ACCOM UKRO,16/05/2016,2017,02,231.62 ,000000000191,UKRO - 2015/16,Emergency Planning & Civil Protection,Emergency Planning & Civil Protection
PCAR,3820,4009,9208,Operational Support Costs,PREMIER INN - ACCOM UKRO,16/05/2016,2017,02,231.62 ,000000000191,UKRO - 2015/16,Emergency Planning & Civil Protection,Emergency Planning & Civil Protection
PCAR,3820,4009,9208,Operational Support Costs,PREMIER INN - ACCOM UKRO,16/05/2016,2017,02,53.74 ,000000000191,UKRO - 2015/16,Emergency Planning & Civil Protection,Emergency Planning & Civil Protection
PCAR,3820,4009,9208,Operational Support Costs,SCREWFIX - TOOL BELTS RTC TEAM,16/05/2016,2017,02,83.30 ,000000000191,UKRO - 2015/16,Emergency Planning & Civil Protection,Emergency Planning & Civil Protection
PCAR,3821,4110,9103,Travelling Expenses,M6 TOLL - TOLL FEE CHARGE,23/05/2016,2017,02,4.58 ,000103000000,Operations (Dept),Operations,Operations (Dept)
PCAR,3821,4111,9103,Subsistence Allowances,REDESDALE ARMS - FOOD RDTI MTG,23/05/2016,2017,02,19.08 ,000103000000,Operations (Dept),Operations,Operations (Dept)
PCAR,3821,4111,9103,Subsistence Allowances,UPAY LTD - FOOD MEETING,23/05/2016,2017,02,6.48 ,000103000000,Operations (Dept),Operations,Operations (Dept)
PCAR,3821,4110,9103,Travelling Expenses,GWR - RAIL MEETING,23/05/2016,2017,02,76.70 ,000103000000,Operations (Dept),Operations,Operations (Dept)
PCAR,3821,4111,9103,Subsistence Allowances,McDONALDS - FOOD MEETING,23/05/2016,2017,02,4.99 ,000103000000,Operations (Dept),Operations,Operations (Dept)
PCAR,3821,4110,9103,Travelling Expenses,GWR - RAIL MEETING,23/05/2016,2017,02,51.30 ,000103000000,Operations (Dept),Operations,Operations (Dept)
PCAR,3821,4110,9103,Travelling Expenses,LUL - UNDERGROUND MEETING,23/05/2016,2017,02,9.80 ,000103000000,Operations (Dept),Operations,Operations (Dept)
PCAR,3822,4110,9210,Travelling Expenses,GREATER ANGLIA - RAIL WORKSHOP,23/05/2016,2017,02,95.10 ,000210000000,Emergency Planning (Dept),Essex Civil Prot ECC,Emergency Planning (Dept)
PCAR,3822,4111,9210,Subsistence Allowances,PREMIER INN - ACCOM WORKSHOP,23/05/2016,2017,02,55.82 ,000210000000,Emergency Planning (Dept),Essex Civil Prot ECC,Emergency Planning (Dept)
PCAR,3822,4110,9210,Travelling Expenses,RYANAIR - FLIGHTS NATO CONFER,23/05/2016,2017,02,16.00 ,000210000000,Emergency Planning (Dept),Essex Civil Prot ECC,Emergency Planning (Dept)
PCAR,3822,4110,9210,Travelling Expenses,STANSTED AIRPORT - PARKING,23/05/2016,2017,02,33.41 ,000210000000,Emergency Planning (Dept),Essex Civil Prot ECC,Emergency Planning (Dept)
PCAR,3822,4110,9210,Travelling Expenses,RYANAIR - FLIGHT NATO CONFER,23/05/2016,2017,02,148.90 ,000210000000,Emergency Planning (Dept),Essex Civil Prot ECC,Emergency Planning (Dept)
PCAR,3823,2030,9210,Operational Equipment Support,BLACKS - CAMP CHAIRS X 4,23/05/2016,2017,02,58.33 ,000210000000,Emergency Planning (Dept),Essex Civil Prot ECC,Emergency Planning (Dept)
PCAR,3824,4111,9103,Subsistence Allowances,SAINSBURYS - LUNCHES EXERCISE,23/05/2016,2017,02,12.51 ,000014000000,014 USAR,Operations,014 USAR
PCAR,3824,6899,9053,Miscellaneous Expenses,MARKSTEY PET- JOINT AID & BAGS,23/05/2016,2017,02,23.15 ,000014000000,014 USAR,Operations - USAR,014 USAR
PCAR,3825,4111,9103,Subsistence Allowances,LION INN - ACCOM,23/05/2016,2017,02,150.00 ,000100000000,SMB (Location),Operations,SMB (Location)
PCAR,3825,4112,9304,Conferences & Seminars,LONDON BRIDGE HOTEL-CONFERENCE,23/05/2016,2017,02,419.00 ,000100000000,SMB (Location),Training,SMB (Location)
PCAR,3826,2017,9401,Canteen Equipment,CURRYS - TALL FRIDGE,24/05/2016,2017,02,198.33 ,000148000000,STC Witham,Catering,STC Witham
PCAR,3826,2017,9401,Canteen Equipment,ASDA - MICROWAVE,24/05/2016,2017,02,37.50 ,000046000000,046 Maldon,Catering,046 Maldon
PCAR,3826,2001,9404,Procurement Costs,BIP SOLUTIONS,24/05/2016,2017,02,295.00 ,000000000000,Not Analysed,Purchasing & Supply,Purchasing & Supply
PCAR,3826,2001,9404,Procurement Costs,BIP SOLUTIONS,24/05/2016,2017,02,195.00 ,000000000000,Not Analysed,Purchasing & Supply,Purchasing & Supply
PCAR,3826,2001,9404,Procurement Costs,BIP SOLUTIONS,24/05/2016,2017,02,-88.50 ,000000000000,Not Analysed,Purchasing & Supply,Purchasing & Supply
PCAR,3826,2012,9404,Office/Admin Equipment (incl copiers),RAVEN COURT - WALL CLOCK,24/05/2016,2017,02,54.63 ,000420000000,Workshops Engineering (Dept),Purchasing & Supply,Workshops Engineering (Dept)
PCAR,3826,4111,9304,Subsistence Allowances,FIVE LAKES - ACCOM,24/05/2016,2017,02,866.67 ,000000000000,Not Analysed,Training,Training
PCAR,3826,4008,9104,Media Expenses,EVENTBRITE - SOCIAL MEDIA,24/05/2016,2017,02,65.97 ,000000000000,Not Analysed,Corporate Comms,Corporate Comms
PCAR,3826,4111,9304,Subsistence Allowances,PREMIER INN - REFUND,24/05/2016,2017,02,-95.99 ,000000000000,Not Analysed,Training,Training
PCAR,3826,2017,9401,Canteen Equipment,MORRISONS - -TOASTER,24/05/2016,2017,02,25.00 ,000014000000,014 USAR,Catering,014 USAR
PCAR,3827,4111,9103,Subsistence Allowances,LION INN - ACCOM,24/05/2016,2017,02,75.00 ,000100000000,SMB (Location),Operations,SMB (Location)
PCAR,3827,6899,9402,Miscellaneous Expenses,TESCO - STAMPS,24/05/2016,2017,02,30.72 ,000100000000,SMB (Location),Finance & Pay,SMB (Location)
PCAR,3828,4019,9201,Community Safety,DORRINGTONS - REFRESHMENTS,24/05/2016,2017,02,9.95 ,000000000004,Ford Sim & car,Community Safety,Community Safety
PCAR,3828,4019,9201,Community Safety,WAITROSE - REFRESHMENTS,24/05/2016,2017,02,9.50 ,000000000004,Ford Sim & car,Community Safety,Community Safety
PCAR,3828,4019,9201,Community Safety,WITHAM CAR WASH - FIRE CAR ,24/05/2016,2017,02,6.00 ,000000000004,Ford Sim & car,Community Safety,Community Safety
PCAR,3828,4019,9201,Community Safety,CHELMSFORD CC - PARKING,24/05/2016,2017,02,3.75 ,000000000007,Community Wheels & RTC Reduction,Community Safety,Community Safety
PCAR,3829,4111,9304,Subsistence Allowances,PADDOCKS HOUSE - ACCOM,24/05/2016,2017,02,149.00 ,000000000811,Training - Leadership,Training,Training
PCAR,3829,4111,9304,Subsistence Allowances,PADDOCKS HOUSE - ACCOM,24/05/2016,2017,02,149.00 ,000000000811,Training - Leadership,Training,Training
PCAR,3829,4112,9100,Conferences & Seminars,CIPD - CONFERENCE,24/05/2016,2017,02,295.00 ,000000000813,Training - L&D Panel,Strategic Management Board,Strategic Management Board
PCAR,3830,4111,9103,Subsistence Allowances,MENZIES HOTEL - ACCOM,24/05/2016,2017,02,47.25 ,000301000000,Technical Services (Dept),Operations,Technical Services (Dept)
PCAR,3830,2030,9053,Operational Equipment Support,EXTREMEGB - SNUGPAK,24/05/2016,2017,02,27.44 ,000000000000,Not Analysed,Operations - USAR,Operations - USAR
PCAR,3831,2040,9210,IT Maintenance and Contracts,999INK - CARTRIDGES,24/05/2016,2017,02,43.99 ,000000000000,Not Analysed,Essex Civil Prot ECC,Essex Civil Prot ECC
PCAR,3831,2040,9210,IT Maintenance and Contracts,MISCO - ADAPTORS,24/05/2016,2017,02,32.14 ,000000000000,Not Analysed,Essex Civil Prot ECC,Essex Civil Prot ECC
PCAR,3832,4111,9103,Subsistence Allowances,SAINSBURYS - LUNCH,24/05/2016,2017,02,6.69 ,000400000000,Workshops Management (Dept),Operations,Workshops Management (Dept)
PCAR,3832,3404,9420,Vehicle Spares,GOLDING AUDIO - REPAIRS,24/05/2016,2017,02,36.36 ,000000000000,Not Analysed,Workshop Engineering,Workshop Engineering
PCAR,3833,4015,8200,Community Commanders Funds,FIRE SERVICE CHARITY - GIFT,24/05/2016,2017,02,108.75 ,000000000000,Not Analysed,East Area Command,East Area Command
PCAR,3834,4009,9209,Operational Support Costs,WESTMINSTER BRIEFING,24/05/2016,2017,02,191.25 ,000000000000,Not Analysed,Corp Risk & Bus Cont,Corp Risk & Bus Cont
PCAR,3834,4111,9103,Subsistence Allowances,TRAVELODGE - ACCOM,24/05/2016,2017,02,63.62 ,000209000000,Corporate Risk & Business Continuity (Dept),Operations,Corporate Risk & Business Continuity (Dept)
PCAR,3835,4111,9304,Subsistence Allowances,CROWNE PLAZA - ACCOM,24/05/2016,2017,02,266.67 ,000100000000,SMB (Location),Training,SMB (Location)
PCAR,3835,4111,9304,Subsistence Allowances,CROWNE PLAZA - ACCOM,24/05/2016,2017,02,266.67 ,000100000000,SMB (Location),Training,SMB (Location)
PCAR,3835,4110,9103,Travelling Expenses,CHELMSFORD BC - PARKING,24/05/2016,2017,02,2.50 ,000100000000,SMB (Location),Operations,SMB (Location)
PCAR,3835,6099,9100,Subscriptions - Corporate,CFOA - SUBSCRIPTIONS,24/05/2016,2017,02,"1,920.00 ",000000000000,Not Analysed,Strategic Management Board,Strategic Management Board
PCAR,3835,4111,9103,Subsistence Allowances,PREMIER INN - ACCOM,24/05/2016,2017,02,81.66 ,000100000000,SMB (Location),Operations,SMB (Location)
PCAR,3836,4111,9210,Subsistence Allowances,GREATER ANGLIA - RAIL,24/05/2016,2017,02,35.35 ,000000000000,Not Analysed,Essex Civil Prot ECC,Essex Civil Prot ECC
PCAR,3836,2040,9210,IT Maintenance and Contracts,MICROSOFT - SOFTWARE,24/05/2016,2017,02,8.29 ,000000000000,Not Analysed,Essex Civil Prot ECC,Essex Civil Prot ECC
PCAR,3837,4015,8200,Community Commanders Funds,AMAZON - BOOKS,24/05/2016,2017,02,34.95 ,000000000000,Not Analysed,East Area Command,East Area Command
PCAR,3838,4110,9103,Travelling Expenses,REDSPOTTEDHANK - RAIL IFE MTG,27/05/2016,2017,02,77.00 ,000201000000,Community Safety (Dept),Operations,Community Safety (Dept)
PCAR,3838,4111,9103,Subsistence Allowances,WCPC = FOOD IFE MEETING,27/05/2016,2017,02,4.12 ,000201000000,Community Safety (Dept),Operations,Community Safety (Dept)
PCAR,3838,4111,9103,Subsistence Allowances,M&S - FOOD IFE MEETING,27/05/2016,2017,02,5.30 ,000201000000,Community Safety (Dept),Operations,Community Safety (Dept)
PCAR,3839,4005,9505,IT Consumables,MANTISBT - CLOUD SOFTWARE,27/05/2016,2017,02,169.41 ,000505000071,ICT Consumables Software,ICT,ICT Consumables Software
PCAR,3839,4005,9505,IT Consumables,VIMEO - VIDEO HOSTING,27/05/2016,2017,02,52.46 ,000505000071,ICT Consumables Software,ICT,ICT Consumables Software
PCAR,3839,4110,9103,Travelling Expenses,CHELMSFORD - PARKING MTG,27/05/2016,2017,02,2.50 ,000505000000,ICT (Dept),Operations,ICT (Dept)
PCAR,3839,4110,9103,Travelling Expenses,CHELMSFORD - PARKING MTG,27/05/2016,2017,02,3.75 ,000505000000,ICT (Dept),Operations,ICT (Dept)
PCAR,3840,4019,9201,Community Safety,B&Q - SAND & STEEL WOOL,27/05/2016,2017,02,13.92 ,000000000001,Museum,Community Safety,Community Safety
PCAR,3840,4019,9201,Community Safety,"GRAYS OFFICE- LABELS,TAGS ETC",27/05/2016,2017,02,39.66 ,000000000001,Museum,Community Safety,Community Safety
PCAR,3841,4001,9404,Stationery,STAPLES - A4 PAPER TRIMMER,27/05/2016,2017,02,66.57 ,000000000191,UKRO - 2015/16,Purchasing & Supply,Purchasing & Supply
PCAR,3842,4111,9304,Subsistence Allowances,McDONALDS - LUNCHES TRAINING,27/05/2016,2017,02,29.37 ,000014000000,014 USAR,Training,014 USAR
PCAR,3842,4111,9304,Subsistence Allowances,SAINSBURYS - LUNCHES TRAINING,27/05/2016,2017,02,13.96 ,000014000000,014 USAR,Training,014 USAR
PCAR,3842,4111,9304,Subsistence Allowances,PREMIER INN - ACCOM ZONAL EXER,27/05/2016,2017,02,144.98 ,000014000000,014 USAR,Training,014 USAR
PCAR,3842,4111,9304,Subsistence Allowances,TESCO - LUNCHES ZONAL EXERCISE,27/05/2016,2017,02,11.06 ,000014000000,014 USAR,Training,014 USAR
PCAR,3842,4111,9304,Subsistence Allowances,McDONALDS - BREAKFAST EXERCISE,27/05/2016,2017,02,17.76 ,000014000000,014 USAR,Training,014 USAR
PCAR,3843,4112,9304,Conferences & Seminars,CAPITA-RADICALISATION CONFEREN,27/05/2016,2017,02,359.00 ,000201000000,Community Safety (Dept),Training,Community Safety (Dept)
PCAR,3844,4110,9103,Travelling Expenses,NCP - CAR PARKING,27/05/2016,2017,02,5.00 ,000014000000,014 USAR,Operations,014 USAR
PCAR,3844,4110,9103,Travelling Expenses,LUL - UNDERGROUND TICKET,27/05/2016,2017,02,12.10 ,000014000000,014 USAR,Operations,014 USAR
